bitfinex/quotes_ETHUSD_20250425
["timestamp","ask_amount","ask_price","bid_price","bid_amount"]
[1745541229249,6.43273367,1771.5,1771.1,12.50622799]
[1745541231502,5.6453808,1771.4,1771.1,6.86021389]
[1745541231677,5.64576182,1771.3,1771.1,4.783]
[1745541231888,5.64576182,1771.3,1770.9,11.26183967]
[1745541232174,5.64590149,1771.2,1770.9,11.26183967]
[1745541232400,5.64538857,1771.4,1770.9,11.26169045]
[1745541232618,5.64538857,1771.4,1771.0,5.64646911]
[1745541233342,11.29089076,1771.4,1771.0,5.64646911]
[1745541233542,5.64538857,1771.4,1771.0,5.64646911]
[1745541233845,5.64538857,1771.4,1771.1,0.5]
[1745541235982,5.64588979,1771.2,1771.1,0.5]
[1745541236178,5.64564726,1771.3,1771.1,0.5]
[1745541237611,5.64535651,1771.4,1771.1,0.5]
[1745541238823,5.6457836,1771.3,1771.1,0.5]
[1745541239688,6.42788979,1771.2,1771.1,0.5]
[1745541245336,6.42788979,1771.2,1770.9,4.783]
[1745541249740,0.7761,1771.3,1771.0,5.64639877]
[1745541249944,6.42152923,1771.4,1771.0,6.46389877]
[1745541250449,5.64506475,1771.5,1771.1,0.5]
[1745541250647,5.64463893,1771.6,1771.3,5.64548448]
[1745541250943,5.64463893,1771.6,1771.2,6.46316973]
[1745541251152,5.64449355,1771.7,1771.3,5.64551968]
[1745541251355,6.41562166,1771.8,1771.4,0.56455197]
[1745541251356,6.41568081,1771.8,1771.4,0.56455197]
[1745541251655,11.28905964,1771.7,1771.3,5.64551968]
[1745541251878,5.64449693,1771.7,1771.3,5.64551968]
[1745541254158,11.28905879,1771.7,1771.3,5.64551968]
[1745541254457,5.64498487,1771.5,1771.2,1.24664226]
[1745541254627,5.64448032,1771.7,1771.2,1.24664226]
[1745541254825,5.64448032,1771.7,1771.2,1.98590655]
[1745541255135,5.64472441,1771.6,1771.2,13.27735375]
[1745541255332,5.64472441,1771.6,1771.2,7.63163015]
[1745541255534,5.64472441,1771.6,1771.2,13.27730297]
[1745541255756,5.64472441,1771.6,1771.2,7.63157937]
[1745541255955,5.64472441,1771.6,1771.3,0.76315794]
[1745541256163,5.64472441,1771.6,1771.3,6.40870745]
[1745541256330,5.64448455,1771.7,1771.3,6.40851153]
[1745541256730,11.28903202,1771.7,1771.3,6.40851153]
[1745541257029,5.64448455,1771.7,1771.3,6.40851153]
[1745541257479,11.2890325,1771.7,1771.3,6.40851153]
[1745541258169,5.64448455,1771.7,1771.3,6.40851153]
[1745541258344,5.6446347,1771.6,1771.3,0.76315794]
[1745541258963,5.6446347,1771.6,1771.3,6.40872497]
[1745541259162,5.64446202,1771.7,1771.3,6.40872497]
[1745541259563,5.64446202,1771.7,1771.3,6.40854558]
[1745541259736,5.64446202,1771.7,1771.3,0.76315794]
[1745541259737,5.64461844,1771.6,1771.3,0.76315794]
[1745541260265,5.64461844,1771.6,1771.3,6.40870508]
[1745541261906,8.64339329,1772.0,1771.4,6.47681863]
[1745541262028,5.6441561,1771.8,1771.4,7.67901629]
[1745541262232,11.28838311,1771.8,1771.4,7.67901629]
[1745541262432,5.6443044,1771.7,1771.4,7.67901629]
[1745541262676,5.64411506,1771.8,1771.4,7.6789956]
[1745541263646,11.28898369,1771.7,1771.4,2.03389766]
[1745541263945,5.64441441,1771.7,1771.4,0.8317]
[1745541266573,5.64411774,1771.8,1771.4,6.47694683]
[1745541266736,5.64430514,1771.7,1771.4,6.47694683]
[1745541267180,5.6441703,1771.8,1771.4,6.47694683]
[1745541267417,5.6441703,1771.8,1771.4,6.47674475]
[1745541268014,6.02926687,1771.9,1771.5,5.64485086]
[1745541268190,5.64398622,1771.8,1771.5,5.64485086]
[1745541268383,11.67321112,1771.9,1771.5,5.64485086]
[1745541268590,5.64403043,1771.8,1771.4,8.16724199]
[1745541268796,5.64403043,1771.8,1771.4,6.47694854]
[1745541268797,5.64431252,1771.7,1771.4,6.47694854]
[1745541269988,5.64419126,1771.8,1771.5,5.64490743]
[1745541270931,12.14175238,1772.0,1771.7,0.7706]
[1745541271086,5.64367611,1771.9,1771.7,0.7706]
[1745541271286,6.49813093,1772.0,1771.7,0.7706]
[1745541272235,5.64321192,1772.1,1771.7,6.41474221]
[1745541272428,5.64256828,1772.3,1771.9,6.47541878]
[1745541272783,6.44648406,1772.6,1772.1,0.8076]
[1745541272987,5.64122798,1772.7,1772.2,6.45011019]
[1745541273221,5.64122798,1772.7,1772.3,5.6422169]
[1745541273424,5.64122798,1772.7,1772.4,0.8076]
[1745541274197,11.28259701,1772.7,1772.4,0.8076]
[1745541274398,11.28261434,1772.7,1772.4,0.8076]
[1745541274642,5.64144746,1772.6,1772.4,0.8076]
[1745541274833,5.64174894,1772.5,1772.4,0.8076]
[1745541275875,5.64217247,1772.4,1772.2,0.815]
[1745541276039,5.64174894,1772.5,1772.2,0.815]
[1745541277248,5.6415452,1772.6,1772.2,6.45749656]
[1745541277657,11.28324377,1772.6,1772.2,6.45749656]
[1745541277972,5.6415452,1772.6,1772.2,6.45749656]
[1745541278176,5.64175269,1772.5,1772.2,7.62387088]
[1745541278591,5.64132114,1772.7,1772.2,1.98137432]
[1745541278753,5.64145889,1772.6,1772.2,1.98137432]
[1745541278953,5.64132114,1772.7,1772.3,5.64235442]
[1745541279386,5.5033,1773.5,1772.6,1.59011115]
[1745541279587,0.8033,1773.5,1772.9,0.8264]
[1745541279795,0.8033,1773.5,1773.2,0.8264]
[1745541279796,5.63868364,1773.5,1773.2,0.8264]
[1745541280573,11.22128691,1773.7,1773.2,0.8264]
[1745541280748,5.63920374,1773.3,1773.2,0.8264]
[1745541281151,5.63954369,1773.2,1772.9,5.6064]
[1745541281476,5.63941585,1773.3,1772.9,11.24687453]
[1745541281690,5.63941585,1773.3,1772.9,12.93562125]
[1745541281867,11.27887462,1773.3,1772.9,12.93562125]
[1745541282194,5.63941585,1773.3,1772.9,12.93562125]
[1745541282551,5.63941585,1773.3,1772.9,7.29514672]
[1745541282752,5.63962893,1773.2,1772.9,7.29514672]
[1745541283004,5.63990685,1773.1,1772.9,5.6064]
[1745541283493,5.64015792,1773.0,1772.9,5.6064]
[1745541283797,5.6396739,1773.2,1772.9,5.6064]
[1745541283952,11.2794503,1773.2,1772.9,5.6064]
[1745541284901,5.6396739,1773.2,1772.9,5.6064]
[1745541285080,11.27946039,1773.2,1772.9,5.6064]
[1745541285290,5.64015792,1773.0,1772.7,0.7672]
[1745541286090,5.64001794,1773.1,1772.7,6.40823335]
[1745541286597,11.28012413,1773.1,1772.7,6.40823335]
[1745541287701,5.64001794,1773.1,1772.7,6.40823335]
[1745541288092,11.28017203,1773.1,1772.7,6.40823335]
[1745541288305,5.64018528,1773.0,1772.7,0.7672]
[1745541291609,5.64018528,1773.0,1772.8,0.5]
[1745541292266,5.64047605,1772.9,1772.8,0.5]
[1745541292463,6.76854218,1772.9,1772.8,0.5]
[1745541292711,6.76854218,1772.9,1772.6,4.778]
[1745541292712,5.64129529,1772.7,1772.5,0.7672]
[1745541292999,5.64143066,1772.6,1772.5,0.7672]
[1745541293187,5.64143066,1772.6,1772.3,5.2051373]
[1745541293188,5.6417513,1772.5,1772.3,5.5452]
[1745541293390,5.64143066,1772.6,1772.3,6.17609112]
[1745541294374,5.64111395,1772.7,1772.3,11.81831126]
[1745541295096,5.64111395,1772.7,1772.3,6.17609112]
[1745541295616,5.64146504,1772.6,1772.3,6.17609112]
[1745541295767,5.64146504,1772.6,1772.3,5.5452]
[1745541296266,11.28264623,1772.7,1772.3,11.18737217]
[1745541296466,11.2826862,1772.7,1772.3,11.18737217]
[1745541296717,5.64127865,1772.7,1772.4,0.5]
[1745541297269,5.64057459,1772.9,1772.5,6.45592277]
[1745541297581,5.64057459,1772.9,1772.5,12.09748099]
[1745541297772,5.64016724,1773.0,1772.5,2.15051921]
[1745541297979,5.64000612,1773.1,1772.7,6.45532275]
[1745541298204,5.64019909,1773.0,1772.7,6.45532275]
[1745541298718,5.64019909,1773.0,1772.7,0.8144]
[1745541301832,5.64019909,1773.0,1772.7,6.45551174]
[1745541302325,5.64001334,1773.1,1772.7,6.45551174]
[1745541303235,1.33468486,1798.2,1773.1,6.4015812]
[1745541303236,6.47082955,1773.6,1773.1,6.4015812]
[1745541303529,6.47082955,1773.6,1773.2,5.6394159]
[1745541303530,5.63842149,1773.6,1773.2,5.6394159]
[1745541303693,5.63807295,1773.7,1773.2,5.63931257]
[1745541303894,6.47005083,1773.8,1773.4,0.7619]
[1745541304117,5.63765083,1773.8,1773.4,0.7619]
[1745541304557,5.63793927,1773.7,1773.4,0.7619]
[1745541304836,5.6374648,1773.9,1773.5,5.63852897]
[1745541304989,5.63743888,1773.9,1773.5,5.63852897]
[1745541305188,5.63743888,1773.9,1773.5,5.63836832]
[1745541306042,5.63743888,1773.9,1773.4,7.47410281]
[1745541306200,5.63762709,1773.8,1773.5,0.74741028]
[1745541306400,5.63750553,1773.9,1773.5,6.38597598]
[1745541306601,5.63763204,1773.8,1773.5,0.74741028]
[1745541307313,5.63805918,1773.7,1773.4,0.7619]
[1745541308506,5.63835823,1773.6,1773.4,0.7619]
[1745541308707,5.63813542,1773.7,1773.4,0.7619]
[1745541308939,5.63750462,1773.9,1773.4,6.81779678]
[1745541309241,6.03791141,1774.2,1773.9,0.8222]
[1745541309242,6.03785198,1774.2,1773.9,0.8222]
[1745541309841,0.4015063,1774.2,1773.9,6.45931201]
[1745541310044,0.4015063,1774.2,1773.9,7.18168336]
[1745541310226,0.4015063,1774.2,1774.0,5.63678127]
[1745541310432,0.4015063,1774.2,1774.1,6.45886084]
[1745541312249,0.4015063,1774.2,1774.1,0.8222]
[1745541312540,0.4015063,1774.2,1774.1,7.65873008]
[1745541312739,0.4015063,1774.2,1774.1,2.02206924]
[1745541313146,0.4015063,1774.2,1774.1,0.8222]
[1745541314335,0.4015063,1774.2,1774.1,6.45886084]
[1745541315854,0.4015063,1774.2,1774.1,9.45886084]
[1745541316559,0.4015063,1774.2,1774.1,9.5619312]
[1745541317957,0.4015063,1774.2,1774.1,6.5619312]
[1745541318156,0.4015063,1774.2,1774.1,8.93976882]
[1745541318355,0.4015063,1774.2,1774.1,3.30310798]
[1745541318550,0.4015063,1774.2,1774.1,8.93976882]
[1745541320327,0.4015063,1774.2,1774.1,11.93976882]
[1745541324438,0.4015063,1774.2,1774.1,3.80310798]
[1745541324637,0.4015063,1774.2,1774.1,0.60307036]
[1745541326935,0.4015063,1774.2,1774.1,7.0133312]
[1745541327983,0.4015063,1774.2,1774.1,10.5633312]
[1745541329268,0.4015063,1774.2,1774.1,14.21967751]
[1745541329565,0.4015063,1774.2,1774.1,16.75899001]
[1745541330466,0.4015063,1774.2,1774.1,17.32369001]
[1745541330661,0.5,1774.7,1774.6,5.63507269]
[1745541330936,0.5,1774.7,1774.6,11.15857269]
[1745541331107,0.5,1774.7,1774.6,16.30663219]
[1745541331763,0.5,1774.7,1774.6,6.9210595]
[1745541331966,0.5,1774.7,1774.6,12.55613219]
[1745541332199,0.5,1774.7,1774.6,13.30663219]
[1745541332605,0.5,1774.7,1774.6,7.35144173]
[1745541333614,0.5,1774.7,1774.6,6.9210595]
[1745541333980,0.4889308,1774.7,1774.6,6.9210595]
[1745541334175,0.4889308,1774.7,1774.6,4.87604132]
[1745541334904,6.12368596,1774.7,1774.6,4.773]
[1745541335635,0.4889308,1774.7,1774.6,4.773]
[1745541336835,0.4889308,1774.7,1774.6,10.40807269]
[1745541337024,0.4889308,1774.7,1774.6,4.773]
[1745541337222,0.4889308,1774.7,1774.6,11.44889122]
[1745541337427,0.4889308,1774.7,1774.6,12.21899122]
[1745541339739,0.4889308,1774.7,1774.6,4.773]
[1745541340241,6.12368596,1774.7,1774.6,4.773]
[1745541341905,5.63539025,1774.5,1774.4,21.677]
[1745541342221,6.44081055,1774.6,1774.4,4.773]
[1745541342422,0.8055,1774.6,1774.4,4.773]
[1745541342624,0.4889308,1774.7,1774.4,4.773]
[1745541342826,6.12386212,1774.7,1774.5,0.00800821]
[1745541343031,0.4889308,1774.7,1774.5,0.00800821]
[1745541343250,0.4889308,1774.7,1774.5,6.68484831]
[1745541343432,0.4889308,1774.7,1774.5,1.04966782]
[1745541343943,0.4889308,1774.7,1774.5,0.00800821]
[1745541344107,6.12370363,1774.7,1774.5,0.00800821]
[1745541344541,5.63507269,1774.6,1774.5,0.00800821]
[1745541344841,6.12382604,1774.7,1774.5,0.00800821]
[1745541345053,6.42007269,1774.6,1774.5,0.00800821]
[1745541345552,0.785,1774.6,1774.5,0.00800821]
[1745541346054,6.42007269,1774.6,1774.5,0.00800821]
[1745541347534,6.12383959,1774.7,1774.5,0.00800821]
[1745541347745,0.4889308,1774.7,1774.5,0.00800821]
[1745541348534,0.4889308,1774.7,1774.5,5.64336127]
[1745541348717,0.4889308,1774.7,1774.5,0.00800821]
[1745541349550,0.4889308,1774.7,1774.5,7.2485528]
[1745541349757,0.4889308,1774.7,1774.6,6.39207269]
[1745541351659,0.48112672,1774.7,1774.6,6.39207269]
[1745541354345,0.48112672,1774.7,1774.6,0.757]
[1745541355034,0.48112672,1774.7,1774.5,7.24848257]
[1745541355240,0.48112672,1774.7,1774.6,0.72484826]
[1745541356330,0.48112672,1774.7,1774.6,5.63507269]
[1745541358093,0.48112672,1774.7,1774.6,6.45897269]
[1745541359483,0.48112672,1774.7,1774.6,6.56201401]
[1745541359690,0.48112672,1774.7,1774.6,10.11201401]
[1745541359993,0.5,1775.1,1775.0,0.8239]
[1745541360192,0.5,1775.1,1775.0,4.811]
[1745541360495,6.95038543,1775.1,1775.0,4.811]
[1745541361002,0.5,1775.1,1775.0,4.811]
[1745541361564,6.13348543,1775.1,1775.0,4.811]
[1745541361770,0.5,1775.1,1775.0,4.811]
[1745541362406,6.43164565,1775.2,1775.0,4.811]
[1745541362701,0.7983,1775.2,1775.0,4.811]
[1745541363074,6.43152627,1775.2,1775.0,4.811]
[1745541365608,5.63348543,1775.1,1775.0,4.811]
[1745541365807,5.63348543,1775.1,1774.7,6.6461014]
[1745541366138,5.63397261,1775.0,1774.7,4.811]
[1745541366499,5.63424733,1774.9,1774.7,4.811]
[1745541368235,6.40098478,1775.0,1774.7,4.811]
[1745541368732,12.03503929,1775.0,1774.7,4.811]
[1745541368928,6.40098478,1775.0,1774.7,4.811]
[1745541369132,5.63428184,1774.9,1774.7,4.811]
[1745541369296,6.40097757,1775.0,1774.7,4.811]
[1745541370035,0.767,1775.0,1774.7,11.50063908]
[1745541370343,5.63349473,1775.1,1774.7,11.50063908]
[1745541370550,11.26727348,1775.1,1774.7,11.50063908]
[1745541370753,11.26722867,1775.1,1774.7,11.50063908]
[1745541371251,5.63349473,1775.1,1774.7,11.50063908]
[1745541372570,11.26725555,1775.1,1774.7,11.50063908]
[1745541372773,5.63387098,1775.0,1774.7,5.86590098]
[1745541372971,5.63387098,1775.0,1774.7,4.811]
[1745541373179,5.63349473,1775.1,1774.7,4.811]
[1745541373374,5.63349473,1775.1,1774.7,10.44563459]
[1745541373375,11.26725608,1775.1,1774.7,10.44563459]
[1745541373589,5.63409656,1775.0,1774.7,4.811]
[1745541374236,5.63414085,1774.9,1774.7,4.811]
[1745541374478,5.63409656,1775.0,1774.7,4.811]
[1745541374646,5.63413914,1774.9,1774.7,4.811]
[1745541375534,5.63402121,1775.0,1774.7,4.811]
[1745541375772,5.63425715,1774.9,1774.7,4.811]
[1745541376066,5.63443768,1774.8,1774.7,4.811]
[1745541376584,6.3964034,1774.9,1774.6,0.10304132]
[1745541376747,6.3964034,1774.9,1774.6,4.91404132]
[1745541377650,0.7621,1774.9,1774.6,4.91404132]
[1745541377850,6.39638529,1774.9,1774.6,6.04815366]
[1745541378051,6.38540715,1774.9,1774.6,6.04815366]
[1745541378373,11.26812045,1775.0,1774.6,11.68306197]
[1745541379091,5.63306968,1775.3,1774.6,6.04815366]
[1745541379263,5.63306478,1775.3,1774.7,3.89433552]
[1745541379440,5.63344802,1775.2,1774.8,6.02376158]
[1745541379838,5.63341955,1775.2,1774.8,0.38943355]
[1745541380078,5.63341955,1775.2,1774.8,6.0237219]
[1745541380238,5.63341955,1775.2,1774.9,0.60237219]
[1745541380639,5.63700219,1775.6,1775.0,0.7913]
[1745541380873,5.63235866,1775.5,1775.3,0.7577]
[1745541381065,5.63266153,1775.4,1775.1,0.7577]
[1745541381792,5.63235866,1775.5,1775.1,6.39097117]
[1745541381974,5.63235866,1775.5,1775.1,7.51119973]
[1745541382693,5.63235866,1775.5,1775.2,0.52349525]
[1745541382846,5.63268753,1775.4,1775.3,0.52349525]
[1745541383044,6.41366974,1775.6,1775.3,0.52349525]
[1745541383246,5.63238649,1775.5,1775.3,0.52349525]
[1745541383447,5.63238649,1775.5,1775.4,0.52349525]
[1745541384281,7.66179211,1775.5,1775.4,0.52349525]
[1745541384462,7.97779252,1775.5,1775.4,0.52349525]
[1745541386848,7.97125026,1775.5,1775.4,0.52349525]
[1745541388105,6.76664464,1775.5,1775.4,0.52349525]
[1745541395563,6.75686128,1775.5,1775.4,0.52349525]
[1745541396550,6.75686128,1775.5,1774.9,0.8302]
[1745541396551,5.63377352,1775.1,1774.9,0.8302]
[1745541397061,5.63377352,1775.1,1775.0,0.52357706]
[1745541399758,5.6329927,1775.3,1775.0,0.52357706]
[1745541400054,5.63336093,1775.2,1775.0,1.2223665]
[1745541400258,5.63336093,1775.2,1775.0,0.52357706]
[1745541400552,5.63336093,1775.2,1775.1,0.52357706]
[1745541401923,5.63301484,1775.3,1775.1,0.52357706]
[1745541402253,3.8248,1775.5,1775.2,0.8045]
[1745541402254,5.63241996,1775.5,1775.2,0.8045]
[1745541402491,5.63271798,1775.4,1775.2,0.8045]
[1745541402663,5.63271798,1775.4,1775.3,0.52357706]
[1745541404360,5.62071818,1775.4,1775.3,0.52357706]
[1745541409186,5.63241367,1775.5,1775.3,0.52357706]
[1745541409483,5.63241367,1775.5,1775.4,0.52357706]
[1745541410050,5.63705371,1775.6,1775.4,0.52357706]
[1745541410449,5.63221627,1775.5,1775.2,0.8045]
[1745541410851,5.63221627,1775.5,1775.2,5.6145]
[1745541411152,5.63221627,1775.5,1775.3,1.08482328]
[1745541411356,5.63221627,1775.5,1775.4,0.52337328]
[1745541413185,5.62108703,1775.5,1775.4,0.52337328]
[1745541413593,5.63696804,1775.6,1775.4,1.32477328]
[1745541413787,5.63221627,1775.5,1775.4,1.32477328]
[1745541414592,5.63221627,1775.5,1775.4,0.52337328]
[1745541414783,5.63221627,1775.5,1775.3,0.8014]
[1745541414965,5.63253351,1775.4,1775.3,0.56114]
[1745541415170,5.63253351,1775.4,1775.2,4.81]
[1745541415583,5.63253351,1775.4,1775.3,0.52357276]
[1745541421889,5.62151534,1775.4,1775.3,0.52357276]
[1745541426577,5.63243044,1775.5,1775.3,0.52357276]
[1745541426909,0.005,1775.6,1775.4,1.28517276]
[1745541427206,5.63690493,1775.6,1775.5,0.52357276]
[1745541427413,0.005,1775.6,1775.5,0.52357276]
[1745541427973,5.63689907,1775.6,1775.5,1.21534244]
[1745541428173,5.63689907,1775.6,1775.5,0.52357276]
[1745541430774,5.63057595,1775.6,1775.5,0.52357276]
[1745541431683,5.94696906,1775.6,1775.5,1.31077276]
[1745541431909,5.94696906,1775.6,1775.5,0.52357276]
[1745541432125,5.63057595,1775.6,1775.5,0.52373605]
[1745541432997,5.63674206,1775.7,1775.5,0.52373605]
[1745541433199,11.26862149,1775.7,1775.5,0.52373605]
[1745541433398,5.63674206,1775.7,1775.6,0.52373605]
[1745541435829,0.005,1775.7,1775.6,1.35613605]
[1745541437114,5.63658191,1775.7,1775.6,1.35613605]
[1745541438309,5.63658191,1775.7,1775.6,0.52373605]
[1745541439085,0.005,1775.7,1775.6,0.52373605]
[1745541440681,7.62728309,1775.7,1775.6,0.52373605]
[1745541440875,7.94345899,1775.7,1775.6,0.52373605]
[1745541441076,5.95275781,1775.7,1775.6,0.52373605]
[1745541444216,6.71935781,1775.7,1775.6,0.52373605]
[1745541448297,6.71155173,1775.7,1775.6,0.52373605]
[1745541451107,9.71155173,1775.7,1775.6,0.52373605]
[1745541451329,5.63285078,1775.3,1775.2,4.785]
[1745541451798,5.63316809,1775.2,1775.1,0.8018]
[1745541451998,5.63316809,1775.2,1775.1,1.324923]
[1745541454434,5.63316809,1775.2,1775.1,0.523123]
[1745541456740,5.633651,1775.1,1774.9,0.8193]
[1745541457102,5.63380281,1775.0,1774.9,0.8193]
[1745541457309,5.63380281,1775.0,1774.9,1.34217171]
[1745541457509,5.63334102,1775.2,1774.9,1.34217171]
[1745541457832,5.63302135,1775.3,1774.9,6.97627262]
[1745541458036,5.63337302,1775.2,1775.0,0.52287171]
[1745541458237,11.26683545,1775.2,1775.0,0.52287171]
[1745541458444,5.63337302,1775.2,1775.1,0.52287171]
[1745541460348,5.63294101,1775.3,1775.1,0.52287171]
[1745541460642,5.63316809,1775.2,1775.1,0.52287171]
[1745541465817,5.62479164,1775.2,1775.1,0.52287171]
[1745541469344,6.7505649,1775.2,1775.1,0.52287171]
[1745541471322,5.62479164,1775.2,1775.1,0.52287171]
[1745541474619,5.61285388,1775.2,1775.1,0.52287171]
[1745541483553,5.60093713,1775.2,1775.1,0.52287171]
[1745541484780,5.60093713,1775.2,1775.1,0.39429196]
[1745541484781,6.40903713,1775.2,1775.1,0.39429196]
[1745541484949,10.68938264,1775.2,1775.1,0.39429196]
[1745541485562,11.00580707,1775.2,1775.1,0.39429196]
[1745541489902,10.68938264,1775.2,1775.1,0.39429196]
[1745541490106,11.00554164,1775.2,1775.1,0.39429196]
[1745541490965,11.00554164,1775.2,1774.7,0.88173552]
[1745541491161,5.63443768,1774.8,1774.7,0.7787]
[1745541492164,5.62773832,1774.8,1774.7,0.7787]
[1745541492365,5.63475516,1774.7,1774.6,4.774]
[1745541496781,5.63475516,1774.7,1774.6,5.29665821]
[1745541500987,5.62670092,1774.7,1774.6,5.29665821]
[1745541501492,5.62670092,1774.7,1774.6,0.52265821]
[1745541501810,6.75281874,1774.7,1774.6,0.52265821]
[1745541502215,5.62670092,1774.7,1774.6,0.52265821]
[1745541506219,5.63412195,1774.9,1774.7,0.7579]
[1745541506520,5.63412195,1774.9,1774.8,0.52265821]
[1745541508916,5.63399768,1775.0,1774.8,0.52265821]
[1745541509520,5.63399768,1775.0,1774.9,0.52265821]
[1745541509916,5.62694309,1775.0,1774.9,0.52265821]
[1745541515346,6.75299626,1775.0,1774.9,0.52265821]
[1745541516035,7.54779626,1775.0,1774.9,0.52265821]
[1745541516499,7.86408976,1775.0,1774.9,0.52265821]
[1745541518031,8.62584054,1775.0,1774.9,0.52265821]
[1745541518591,8.6177923,1775.0,1774.9,0.52265821]
[1745541519048,11.6177923,1775.0,1774.9,0.52265821]
[1745541519657,5.63507269,1774.6,1774.5,0.00800821]
[1745541520128,5.63507269,1774.6,1774.5,0.53178055]
[1745541520445,5.63479705,1774.7,1774.5,0.53178055]
[1745541520809,5.63507269,1774.6,1774.5,0.53178055]
[1745541525544,6.76205966,1774.6,1774.5,0.53178055]
[1745541525731,8.62765476,1774.6,1774.5,0.53178055]
[1745541526062,11.62765476,1774.6,1774.5,0.53178055]
[1745541526363,10.86590398,1774.6,1774.5,0.53178055]
[1745541526764,10.54965966,1774.6,1774.5,0.53178055]
[1745541527463,10.53713351,1774.6,1774.5,0.53178055]
[1745541527658,10.53713351,1774.6,1774.5,0.00800821]
[1745541528653,10.8531383,1774.6,1774.5,0.00800821]
[1745541529081,5.63602547,1774.3,1774.2,0.00800821]
[1745541529766,5.63602547,1774.3,1774.2,0.53112043]
[1745541530934,6.46102547,1774.3,1774.2,0.53112043]
[1745541531131,7.67071066,1774.3,1774.2,0.53112043]
[1745541531863,6.84571066,1774.3,1774.2,0.53112043]
[1745541532030,5.63602547,1774.3,1774.2,0.53112043]
[1745541533770,5.63602547,1774.3,1774.2,1.35232043]
[1745541535049,5.63602547,1774.3,1774.2,0.53112043]
[1745541536179,5.62582884,1774.3,1774.2,0.53112043]
[1745541538980,5.63539025,1774.5,1774.2,0.53112043]
[1745541539185,11.27171249,1774.4,1774.2,0.53112043]
[1745541539480,5.63571538,1774.4,1774.2,0.53112043]
[1745541539652,5.63571538,1774.4,1774.3,0.52311222]
[1745541541288,5.62770717,1774.4,1774.3,0.52311222]
[1745541542754,6.75402453,1774.4,1774.3,0.52311222]
[1745541542959,5.62770717,1774.4,1774.3,0.52311222]
[1745541543692,5.62770717,1774.4,1774.3,0.52306548]
[1745541544967,5.61779872,1774.4,1774.3,0.52306548]
[1745541549009,5.63634314,1774.2,1774.1,0.8162]
[1745541549388,5.61779872,1774.4,1774.1,0.8162]
[1745541549588,5.61779872,1774.4,1774.1,1.46151304]
[1745541549775,5.61779872,1774.4,1774.2,0.52369134]
[1745541550107,11.25377287,1774.4,1774.2,0.52369134]
[1745541550315,5.61779872,1774.4,1774.2,0.52369134]
[1745541551415,11.25377511,1774.4,1774.2,0.52369134]
[1745541551914,5.63551209,1774.5,1774.3,0.833]
[1745541552699,11.27117246,1774.5,1774.3,0.833]
[1745541552902,5.63570784,1774.4,1774.3,0.833]
[1745541553101,5.63539025,1774.5,1774.3,0.833]
[1745541553619,5.63539025,1774.5,1774.4,0.52369134]
[1745541553818,5.6287019,1774.5,1774.4,0.52369134]
[1745541556418,5.94523561,1774.5,1774.4,0.52369134]
[1745541556935,8.99645094,1774.5,1774.4,0.52369134]
[1745541557641,8.2343334,1774.5,1774.4,0.52369134]
[1745541558704,5.63658927,1774.2,1773.9,0.8145]
[1745541559006,5.63658927,1774.2,1774.0,0.5243127]
[1745541559602,5.63658927,1774.2,1774.1,0.5243127]
[1745541560016,5.63619426,1774.3,1774.1,0.5243127]
[1745541560926,5.63619426,1774.3,1774.2,0.5243127]
[1745541561604,5.63586037,1774.4,1774.2,0.5243127]
[1745541562023,5.63586037,1774.4,1774.3,0.5243127]
[1745541562638,5.626074,1774.4,1774.3,0.5243127]
[1745541566240,6.83238269,1774.4,1774.3,0.5243127]
[1745541566609,7.14895852,1774.4,1774.3,0.5243127]
[1745541566837,7.95055852,1774.4,1774.3,0.5243127]
[1745541567441,10.95055852,1774.4,1774.3,0.5243127]
[1745541567742,5.63729635,1773.9,1773.8,4.775]
[1745541567902,5.63729635,1773.9,1773.4,16.907]
[1745541568107,5.63838997,1773.6,1773.4,2.5077]
[1745541568308,5.63838997,1773.6,1773.4,0.817]
[1745541568503,5.63838997,1773.6,1773.5,0.52409718]
[1745541570660,5.63812162,1773.7,1773.5,0.52409718]
[1745541571252,5.63824988,1773.6,1773.4,0.817]
[1745541571451,5.6380784,1773.7,1773.4,0.817]
[1745541571879,5.63826706,1773.6,1773.4,0.817]
[1745541572346,5.63826706,1773.6,1773.5,0.52272942]
[1745541574046,5.63826706,1773.6,1773.4,0.817]
[1745541574565,5.63808397,1773.7,1773.4,0.817]
[1745541574764,5.63808397,1773.7,1773.4,1.3762]
[1745541574966,5.63776265,1773.8,1773.4,1.3762]
[1745541575306,5.63776265,1773.8,1773.4,7.01496908]
[1745541575571,5.63741661,1773.9,1773.6,0.759]
[1745541575733,5.63741661,1773.9,1773.7,0.52223762]
[1745541576433,5.63724152,1774.0,1773.8,0.52223762]
[1745541576633,5.63729635,1773.9,1773.8,0.52223762]
[1745541578572,5.63729635,1773.9,1773.6,0.759]
[1745541578752,5.63729635,1773.9,1773.6,1.39874123]
[1745541579091,11.27490532,1773.9,1773.7,0.52212619]
[1745541579241,5.63741335,1773.9,1773.7,0.52212619]
[1745541579671,5.63741335,1773.9,1773.8,0.52212619]
[1745541580073,5.6256567,1773.9,1773.7,0.52212619]
[1745541580857,5.63761416,1773.8,1773.6,0.759]
[1745541581374,5.6256567,1773.9,1773.7,0.52226295]
[1745541581550,5.6256567,1773.9,1773.6,0.759]
[1745541581751,5.6371643,1774.0,1773.6,7.0369948]
[1745541582075,5.63708932,1774.0,1773.6,7.03688149]
[1745541582480,5.63708932,1774.0,1773.7,0.52219009]
[1745541582948,5.63708932,1774.0,1773.8,0.52219009]
[1745541583465,5.63708932,1774.0,1773.9,0.52219009]
[1745541584059,5.63708932,1774.0,1773.7,0.52219009]
[1745541584256,5.63708932,1774.0,1773.7,1.27808724]
[1745541584557,5.63708932,1774.0,1773.8,0.52219009]
[1745541585151,0.8082,1774.3,1773.8,0.52219009]
[1745541585481,5.6370917,1774.0,1773.9,0.52219009]
[1745541585781,6.4229917,1774.0,1773.9,0.52219009]
[1745541585987,5.63761416,1773.8,1773.7,0.52219009]
[1745541586340,5.63751931,1773.9,1773.7,0.52219009]
[1745541586981,5.63751931,1773.9,1773.8,0.52219009]
[1745541587692,6.4230729,1774.0,1773.8,0.52219009]
[1745541588158,6.4230729,1774.0,1773.9,0.52219009]
[1745541588962,6.41537789,1774.0,1773.9,0.52219009]
[1745541590007,5.63747234,1773.9,1773.7,0.52219009]
[1745541590334,5.63747234,1773.9,1773.8,0.52219009]
[1745541591607,9.84275736,1773.9,1773.8,0.52219009]
[1745541591986,9.84275736,1773.9,1773.5,0.52219009]
[1745541591987,5.63824988,1773.6,1773.5,0.52219009]
[1745541597732,5.62607096,1773.6,1773.5,0.52219009]
[1745541600037,5.63904487,1773.4,1773.2,0.5]
[1745541600825,5.63904487,1773.4,1773.3,0.52390398]
[1745541603444,5.63864645,1773.5,1773.3,0.52390398]